[Event "DVM U12W 2021"]
[Site "Willingen"]
[Date "2022.08.14"]
[Round "4"]
[White "Cao, Weiqi"]
[Black "Piffczyk, Sandra"]
[Result "1-0"]
[ECO "D02"]
[WhiteElo "969"]
[BlackElo "704"]
[Annotator "NA RC"]
[PlyCount "109"]
[EventDate "2022.08.12"]
[EventType "team-tourn"]
[EventRounds "7"]
[EventCountry "GER"]
[SourceTitle "playchess.com"]
[Source "ChessBase"]
[SourceQuality "1"]
[TimeControl "40/5400+30:1800+30"]

1. d4 {[%emt 0:00:13]} d5 {[%emt 0:00:00]} 2. Nf3 {[%emt 0:00:25]} Nf6 {[%emt 0:00:00]} 3. g3 {[%emt 0:00:23]} Nc6 {[%emt 0:00:00]} 4. Bg2 {[%emt 0:00:43]} Bg4 {[%emt 0:00:06]} 5. O-O {[%emt 0:00:19]} e6 {[%emt 0:00:10]} 6. c4 {[%emt 0:01:46]} Bb4 {[%emt 0:01:16]} 7. Nc3 {[%emt 0:01:42]} O-O {[%emt 0:00:46]} 8. a3 {[%emt 0:00:57]} Bxc3 {[%emt 0:00:22]} 9. bxc3 {[%emt 0:02:30]} Bxf3 {[%emt 0:00:21]} 10. Bxf3 {[%emt 0:02:31]} e5 {[%emt 0:01:53]} 11. cxd5 {[%emt 0:01:49]} Nxd5 {[%emt 0:01:17]} 12. Bb2 {[%emt 0:02:51]} Qd6 {[%emt 0:00:50]} 13. dxe5 {[%emt 0:01:19]} Nxe5 {[%emt 0:01:07]} 14. Bxd5 {[%emt 0:02:23]} c6 {[%emt 0:01:01]} 15. Be4 {[%emt 0:01:44]} Qh6 {[%emt 0:00:49]} 16. Bc1 {[%emt 0:02:25]} Qh5 {[%emt 0:01:24]} 17. Rb1 {[%emt 0:02:07]} Rab8 {[%emt 0:01:25]} 18. Bf4 {[%emt 0:03:07]} Ng4 {[%emt 0:01:30]} 19. h4 {[%emt 0:02:11]} Rbd8 {[%emt 0:01:17]} 20. Qa4 {[%emt 0:05:35]} Qc5 {[%emt 0:01:32]} 21. Bf3 {[%emt 0:02:02]} Nf6 {[%emt 0:01:48]} 22. Rxb7 {[%emt 0:02:28]} Qxc3 {[%emt 0:03:55]} 23. Rc1 {[%emt 0:05:28]} Qd4 {[%emt 0:01:06]} 24. Qxd4 {[%emt 0:00:28]} Rxd4 {[%emt 0:00:53]} 25. Be3 {[%emt 0:02:53]} Ra4 {[%emt 0:01:28]} 26. Rxa7 {[%emt 0:02:28]} Rxa7 {[%emt 0:00:11]} 27. Bxa7 {[%emt 0:00:31]} Ra8 {[%emt 0:01:23]} 28. Bd4 {[%emt 0:03:25]} Rxa3 {[%emt 0:00:16]} 29. Bxc6 {[%emt 0:04:20]} h6 {[%emt 0:02:33]} 30. Rb1 {[%emt 0:01:13]} Ra2 {[%emt 0:03:03]} 31. Bb5 {[%emt 0:03:40]} Rd2 {[%emt 0:00:26]} 32. Bd3 {[%emt 0:01:52]} Kh8 {[%emt 0:02:10]} 33. Ra1 {[%emt 0:03:11]} Ng8 {[%emt 0:00:20]} 34. Bc3 {[%emt 0:00:46]} Rxd3 {[%emt 0:00:14]} 35. exd3 {[%emt 0:00:29]} Nf6 {[%emt 0:00:12]} 36. Bxf6 {[%emt 0:00:20]} gxf6 {[%emt 0:00:04]} 37. Ra8+ {[%emt 0:00:16]} Kg7 {[%emt 0:00:18]} 38. h5 {[%emt 0:00:15]} f5 {[%emt 0:00:06]} 39. d4 {[%emt 0:00:08]} Kf6 {[%emt 0:00:36]} 40. d5 {[%emt 0:00:00]} Ke7 {[%emt 0:00:14]} 41. Ra1 {[%emt 0:30:13]} Kd6 {[%emt 0:30:32]} 42. Ra6+ {[%emt 0:00:34]} Kxd5 {[%emt 0:00:03]} 43. Rxh6 {[%emt 0:00:30]} Ke5 {[%emt 0:00:20]} 44. Rh8 {[%emt 0:00:16]} Kf6 {[%emt 0:00:14]} 45. Rg8 {[%emt 0:00:39]} Ke6 {[%emt 0:00:04]} 46. h6 {[%emt 0:00:25]} f6 {[%emt 0:00:07]} 47. h7 {[%emt 0:00:19]} Ke5 {[%emt 0:00:15]} 48. h8=R {[%emt 0:00:22]} Ke6 {[%emt 0:00:27]} 49. Ra8 {[%emt 0:00:15]} Kf7 {[%emt 0:00:53]} 50. Ra7+ {[%emt 0:00:28]} Kg6 {[%emt 0:00:12]} 51. Rg8+ {[%emt 0:00:17]} Kh6 {[%emt 0:00:33]} 52. Rag7 {[%emt 0:00:10]} f4 {[%emt 0:00:13]} 53. gxf4 {[%emt 0:01:11]} f5 {[%emt 0:00:20]} 54. Kf1 {[%emt 0:00:21]} Kh5 {[%emt 0:00:07]} 55. Rh8# 1-0

[Event "DVM U12W 2021"]
[Site "Willingen"]
[Date "2022.08.14"]
[Round "4"]
[White "Marrufo, Adriana"]
[Black "Greive, Greta"]
[Result "1-0"]
[ECO "C50"]
[WhiteElo "942"]
[BlackElo "1136"]
[Annotator "NA RC"]
[PlyCount "51"]
[EventDate "2022.08.12"]
[EventType "team-tourn"]
[EventRounds "7"]
[EventCountry "GER"]
[SourceTitle "playchess.com"]
[Source "ChessBase"]
[SourceQuality "1"]
[TimeControl "40/5400+30:1800+30"]

1. e4 {[%emt 0:00:04]} e5 {[%emt 0:00:09]} 2. Nf3 {[%emt 0:00:13]} Nc6 {[%emt 0:00:06]} 3. Bc4 {[%emt 0:00:16]} Bc5 {[%emt 0:00:06]} 4. Nc3 {[%emt 0:00:33]} Nf6 {[%emt 0:00:51]} 5. d3 {[%emt 0:00:13]} h6 {[%emt 0:00:29]} 6. Be3 {[%emt 0:00:24]} d6 {[%emt 0:00:13]} 7. h3 {[%emt 0:00:39]} O-O {[%emt 0:00:30]} 8. g4 {[%emt 0:01:18]} Re8 {[%emt 0:04:37]} 9. g5 {[%emt 0:00:20]} hxg5 {[%emt 0:00:58]} 10. Bxg5 {[%emt 0:00:23]} Be6 {[%emt 0:02:46]} 11. Bb3 {[%emt 0:01:05]} Rc8 {[%emt 0:14:33]} 12. Qd2 {[%emt 0:00:49]} Kf8 {[%emt 0:01:10]} 13. h4 {[%emt 0:03:36]} Ke7 {[%emt 0:03:11]} 14. h5 {[%emt 0:01:35]} Kd7 {[%emt 0:00:17]} 15. h6 {[%emt 0:01:42]} gxh6 {[%emt 0:01:29]} 16. Rxh6 {[%emt 0:00:18]} Rh8 {[%emt 0:01:39]} 17. Bxf6 {[%emt 0:01:17]} Qf8 {[%emt 0:01:07]} 18. Rxh8 {[%emt 0:00:30]} Qxh8 {[%emt 0:01:29]} 19. Bxh8 {[%emt 0:00:12]} Rxh8 {[%emt 0:00:10]} 20. O-O-O {[%emt 0:00:23]} Bg4 {[%emt 0:01:03]} 21. Qg5 {[%emt 0:02:55]} d5 {[%emt 0:03:06]} 22. Qxg4+ {[%emt 0:00:32]} Ke7 {[%emt 0:01:07]} 23. Nxd5+ {[%emt 0:00:35]} Kf8 {[%emt 0:00:45]} 24. Qf5 {[%emt 0:01:45]} Bxf2 {[%emt 0:05:02]} 25. Nxc7 {[%emt 0:00:28]} Ne7 {[%emt 0:01:40]} 26. Qxf7# {[%emt 0:00:13]} 1-0

[Event "DVM U12W 2021"]
[Site "Willingen"]
[Date "2022.08.14"]
[Round "4"]
[White "Doberchak, Emily Alice"]
[Black "Henzel, Leonie"]
[Result "0-1"]
[ECO "C01"]
[WhiteElo "928"]
[BlackElo "1134"]
[Annotator "NA RC"]
[PlyCount "40"]
[EventDate "2022.08.12"]
[EventType "team-tourn"]
[EventRounds "7"]
[EventCountry "GER"]
[SourceTitle "playchess.com"]
[Source "ChessBase"]
[SourceQuality "1"]
[TimeControl "40/5400+30:1800+30"]

1. e4 {[%emt 0:00:02]} e6 {[%emt 0:00:08]} 2. d4 {[%emt 0:00:16]} d5 {[%emt 0:00:11]} 3. exd5 {[%emt 0:00:21]} exd5 {[%emt 0:00:16]} 4. Nf3 {[%emt 0:00:24]} Bd6 {[%emt 0:00:26]} 5. Nc3 {[%emt 0:00:30]} Nf6 {[%emt 0:00:45]} 6. Bg5 {[%emt 0:00:25]} O-O {[%emt 0:01:13]} 7. Qd2 {[%emt 0:00:12]} h6 {[%emt 0:05:27]} 8. Bxf6 {[%emt 0:00:44]} Qxf6 {[%emt 0:00:23]} 9. O-O-O {[%emt 0:00:38]} Bf4 {[%emt 0:00:43]} 10. Nxd5 {[%emt 0:01:55]} Bxd2+ {[%emt 0:00:36]} 11. Rxd2 {[%emt 0:00:18]} Qd6 {[%emt 0:01:42]} 12. Ne3 {[%emt 0:00:58]} Nc6 {[%emt 0:06:49]} 13. Nf5 {[%emt 0:00:27]} Bxf5 {[%emt 0:01:33]} 14. d5 {[%emt 0:00:31]} Nb4 {[%emt 0:06:12]} 15. a3 {[%emt 0:00:52]} Nxd5 {[%emt 0:02:55]} 16. c4 {[%emt 0:00:31]} Qc5 {[%emt 0:01:30]} 17. Ne5 {[%emt 0:00:50]} Nf6 {[%emt 0:01:48]} 18. Nf3 {[%emt 0:00:36]} Rad8 {[%emt 0:02:12]} 19. Re2 {[%emt 0:00:27]} Qxc4+ {[%emt 0:00:45]} 20. Rc2 {[%emt 0:01:20]} Qxc2# {[%emt 0:00:12]} 0-1

[Event "DVM U12W 2021"]
[Site "Willingen"]
[Date "2022.08.14"]
[Round "4"]
[White "Mauhs, Helena"]
[Black "Engeln, Helene"]
[Result "1-0"]
[ECO "C50"]
[WhiteElo "857"]
[BlackElo "956"]
[Annotator "NA RC"]
[PlyCount "41"]
[EventDate "2022.08.12"]
[EventType "team-tourn"]
[EventRounds "7"]
[EventCountry "GER"]
[SourceTitle "playchess.com"]
[Source "ChessBase"]
[SourceQuality "1"]
[TimeControl "40/5400+30:1800+30"]

1. e4 {[%emt 0:00:02]} e5 {[%emt 0:00:06]} 2. Nf3 {[%emt 0:00:11]} Nc6 {[%emt 0:00:05]} 3. Bc4 {[%emt 0:00:08]} Nf6 {[%emt 0:00:06]} 4. Nc3 {[%emt 0:00:14]} Bc5 {[%emt 0:00:10]} 5. O-O {[%emt 0:00:10]} d6 {[%emt 0:00:28]} 6. d3 {[%emt 0:00:12]} Bg4 {[%emt 0:00:19]} 7. Be3 {[%emt 0:00:29]} Nd4 {[%emt 0:03:39]} 8. Bxd4 {[%emt 0:01:15]} exd4 {[%emt 0:00:04]} 9. Nd5 {[%emt 0:01:29]} c6 {[%emt 0:01:34]} 10. Nxf6+ {[%emt 0:01:45]} Qxf6 {[%emt 0:00:12]} 11. c3 {[%emt 0:02:52]} Qg6 {[%emt 0:01:24]} 12. cxd4 {[%emt 0:01:30]} Bxd4 {[%emt 0:04:05]} 13. h3 {[%emt 0:00:00]} Bxh3 {[%emt 0:00:20]} 14. Nh4 {[%emt 0:00:11]} Qg5 {[%emt 0:01:52]} 15. Qf3 {[%emt 0:01:04]} Qxh4 {[%emt 0:00:35]} 16. Qxf7+ {[%emt 0:02:12]} Kd8 {[%emt 0:00:06]} 17. gxh3 {[%emt 0:01:11]} Qg5+ {[%emt 0:01:45]} 18. Kh1 {[%emt 0:00:29]} Qh6 {[%emt 0:01:36]} 19. Be6 {[%emt 0:00:27]} Qxe6 {[%emt 0:05:52]} 20. Qxe6 {[%emt 0:00:15]} Re8 {[%emt 0:00:16]} 21. Qxd6+ {[%emt 0:00:11]} 1-0

[Event "DVM U12W 2021"]
[Site "Willingen"]
[Date "2022.08.14"]
[Round "4"]
[White "Guliyeva, Zahra"]
[Black "Grey, Paula"]
[Result "1-0"]
[ECO "C50"]
[WhiteElo "834"]
[BlackElo "854"]
[Annotator "NA RC"]
[PlyCount "65"]
[EventDate "2022.08.12"]
[EventType "team-tourn"]
[EventRounds "7"]
[EventCountry "GER"]
[SourceTitle "playchess.com"]
[Source "ChessBase"]
[SourceQuality "1"]
[TimeControl "40/5400+30:1800+30"]

1. e4 {[%emt 0:00:05]} e5 {[%emt 0:00:00]} 2. Nf3 {[%emt 0:00:11]} Nc6 {[%emt 0:00:00]} 3. Bc4 {[%emt 0:00:16]} Bc5 {[%emt 0:00:01]} 4. O-O {[%emt 0:00:12]} Nf6 {[%emt 0:00:06]} 5. Nc3 {[%emt 0:00:21]} O-O {[%emt 0:01:23]} 6. d3 {[%emt 0:00:27]} d6 {[%emt 0:00:12]} 7. h3 {[%emt 0:00:25]} Re8 {[%emt 0:00:19]} 8. Bg5 {[%emt 0:00:22]} h6 {[%emt 0:00:06]} 9. Bh4 {[%emt 0:01:38]} Nd4 {[%emt 0:00:32]} 10. Nd5 {[%emt 0:06:49]} Be6 {[%emt 0:01:17]} 11. Nxf6+ {[%emt 0:00:17]} gxf6 {[%emt 0:01:28]} 12. Bxe6 {[%emt 0:00:39]} Nxe6 {[%emt 0:00:30]} 13. Qd2 {[%emt 0:01:38]} Kh7 {[%emt 0:02:59]} 14. Qe2 {[%emt 0:00:43]} Nf4 {[%emt 0:02:51]} 15. Qe1 {[%emt 0:00:20]} Rg8 {[%emt 0:00:30]} 16. g3 {[%emt 0:00:45]} Nxh3+ {[%emt 0:02:07]} 17. Kg2 {[%emt 0:00:39]} Nf4+ {[%emt 0:01:01]} 18. Kh2 {[%emt 0:00:41]} Ng6 {[%emt 0:00:32]} 19. Qe2 {[%emt 0:00:53]} Nxh4 {[%emt 0:01:25]} 20. Nxh4 {[%emt 0:02:03]} Qd7 {[%emt 0:01:32]} 21. Qh5 {[%emt 0:01:06]} Rg5 {[%emt 0:00:43]} 22. Qf3 {[%emt 0:02:12]} Qe6 {[%emt 0:01:04]} 23. Nf5 {[%emt 0:03:14]} Rd8 {[%emt 0:01:40]} 24. Qg2 {[%emt 0:01:01]} Rh5+ {[%emt 0:00:20]} 25. Kg1 {[%emt 0:01:48]} Rg8 {[%emt 0:02:50]} 26. g4 {[%emt 0:01:00]} Rhg5 {[%emt 0:02:14]} 27. Qh3 {[%emt 0:01:25]} h5 {[%emt 0:01:22]} 28. Kg2 {[%emt 0:00:46]} Rxg4+ {[%emt 0:00:22]} 29. Kf3 {[%emt 0:01:22]} Rf4+ {[%emt 0:00:09]} 30. Ke2 {[%emt 0:01:33]} Kg6 {[%emt 0:00:25]} 31. Rg1+ {[%emt 0:01:16]} Rg4 {[%emt 0:00:27]} 32. Rxg4+ {[%emt 0:00:23]} hxg4 {[%emt 0:00:08]} 33. Qh6# 1-0

[Event "DVM U12W 2021"]
[Site "Willingen"]
[Date "2022.08.14"]
[Round "4"]
[White "Limmer, Maria"]
[Black "Ramien, Eva"]
[Result "0-1"]
[ECO "C45"]
[WhiteElo "767"]
[BlackElo "929"]
[Annotator "NA RC"]
[PlyCount "110"]
[EventDate "2022.08.12"]
[EventType "team-tourn"]
[EventRounds "7"]
[EventCountry "GER"]
[SourceTitle "playchess.com"]
[Source "ChessBase"]
[SourceQuality "1"]
[TimeControl "40/5400+30:1800+30"]

1. e4 {[%emt 0:00:02]} e5 {[%emt 0:00:07]} 2. Nf3 {[%emt 0:00:05]} Nc6 {[%emt 0:00:09]} 3. d4 {[%emt 0:00:08]} exd4 {[%emt 0:00:14]} 4. Nxd4 {[%emt 0:00:15]} Bc5 {[%emt 0:00:12]} 5. Be3 {[%emt 0:00:58]} Qf6 {[%emt 0:00:34]} 6. c3 {[%emt 0:00:14]} Nxd4 {[%emt 0:01:37]} 7. Bxd4 {[%emt 0:00:49]} Bxd4 {[%emt 0:00:14]} 8. cxd4 {[%emt 0:01:04]} Nh6 {[%emt 0:03:12]} 9. Nc3 {[%emt 0:00:18]} d6 {[%emt 0:01:03]} 10. Be2 {[%emt 0:00:15]} O-O {[%emt 0:01:02]} 11. O-O {[%emt 0:00:20]} Qg6 {[%emt 0:01:52]} 12. Bf3 {[%emt 0:00:26]} Bd7 {[%emt 0:00:59]} 13. Re1 {[%emt 0:00:42]} Qg5 {[%emt 0:05:14]} 14. Nd5 {[%emt 0:01:45]} Qd8 {[%emt 0:00:33]} 15. Rc1 {[%emt 0:01:07]} c6 {[%emt 0:00:52]} 16. Nc3 {[%emt 0:00:26]} Qb6 {[%emt 0:03:52]} 17. Na4 {[%emt 0:00:51]} Qa5 {[%emt 0:01:34]} 18. h3 {[%emt 0:01:40]} Qg5 {[%emt 0:01:01]} 19. Nc3 {[%emt 0:00:56]} Bxh3 {[%emt 0:02:54]} 20. a3 {[%emt 0:02:09]} Bg4 {[%emt 0:00:13]} 21. Bxg4 {[%emt 0:00:55]} Nxg4 {[%emt 0:00:23]} 22. f3 {[%emt 0:01:37]} Nh6 {[%emt 0:00:29]} 23. Ne2 {[%emt 0:00:56]} Qe3+ {[%emt 0:02:49]} 24. Kf1 {[%emt 0:00:35]} Qg5 {[%emt 0:00:46]} 25. Nc3 {[%emt 0:02:38]} Qh4 {[%emt 0:01:01]} 26. Kg1 {[%emt 0:00:22]} Qe7 {[%emt 0:00:44]} 27. Kf2 {[%emt 0:00:36]} Rad8 {[%emt 0:01:03]} 28. Rh1 {[%emt 0:00:21]} Qf6 {[%emt 0:01:03]} 29. a4 {[%emt 0:01:41]} Ng4+ {[%emt 0:00:30]} 30. Ke2 {[%emt 0:01:04]} Nh6 {[%emt 0:01:18]} 31. Qg1 {[%emt 0:01:26]} Rfe8 {[%emt 0:01:21]} 32. Qf2 {[%emt 0:01:18]} Qe6 {[%emt 0:01:10]} 33. Qh4 {[%emt 0:01:07]} Qc4+ {[%emt 0:02:05]} 34. Kd1 {[%emt 0:01:09]} Qxd4+ {[%emt 0:00:23]} 35. Ke1 {[%emt 0:00:34]} Qb6 {[%emt 0:01:43]} 36. Rh3 {[%emt 0:00:43]} Qxb2 {[%emt 0:01:17]} 37. Ne2 {[%emt 0:00:32]} Qb4+ {[%emt 0:00:45]} 38. Kd1 {[%emt 0:00:19]} Qxa4+ {[%emt 0:00:22]} 39. Rc2 {[%emt 0:00:25]} b5 {[%emt 0:00:50]} 40. Qg5 {[%emt 0:00:38]} f6 {[%emt 0:01:23]} 41. Qf4 {[%emt 0:31:03]} b4 {[%emt 0:30:33]} 42. Kc1 {[%emt 0:01:04]} Qa1+ {[%emt 0:00:51]} 43. Kd2 {[%emt 0:00:18]} b3 {[%emt 0:00:45]} 44. Rc1 {[%emt 0:00:26]} Qa2+ {[%emt 0:00:37]} 45. Ke1 {[%emt 0:00:34]} b2 {[%emt 0:00:28]} 46. Nc3 {[%emt 0:00:32]} Qa3 {[%emt 0:01:18]} 47. Qd2 {[%emt 0:00:18]} Rb8 {[%emt 0:01:33]} 48. Rh1 {[%emt 0:00:22]} Re7 {[%emt 0:01:31]} 49. Ke2 {[%emt 0:00:16]} Reb7 {[%emt 0:00:22]} 50. Rb1 {[%emt 0:00:39]} a5 {[%emt 0:01:09]} 51. Qe1 {[%emt 0:00:45]} Rb3 {[%emt 0:01:02]} 52. Nd1 {[%emt 0:02:03]} a4 {[%emt 0:01:04]} 53. Rf1 {[%emt 0:01:15]} Qc5 {[%emt 0:00:50]} 54. Qd2 {[%emt 0:00:18]} Qb5+ {[%emt 0:00:42]} 55. Kf2 {[%emt 0:00:26]} a3 {[%emt 0:00:48]} 0-1

[Event "DVM U12W 2021"]
[Site "Willingen"]
[Date "2022.08.15"]
[Round "5"]
[White "Wagner, Cosima Thien-An"]
[Black "Müller, Cosima"]
[Result "1/2-1/2"]
[ECO "B78"]
[WhiteElo "1301"]
[BlackElo "1355"]
[Annotator "NA RC"]
[PlyCount "103"]
[EventDate "2022.08.12"]
[EventType "team-tourn"]
[EventRounds "7"]
[EventCountry "GER"]
[SourceTitle "playchess.com"]
[Source "ChessBase"]
[SourceQuality "1"]
[TimeControl "40/5400+30:1800+30"]

1. e4 {[%emt 0:00:01]} c5 {[%emt 0:00:08]} 2. Nf3 {[%emt 0:00:05]} Nc6 {[%emt 0:00:05]} 3. d4 {[%emt 0:00:06]} cxd4 {[%emt 0:00:03]} 4. Nxd4 {[%emt 0:00:08]} g6 {[%emt 0:00:05]} 5. Nc3 {[%emt 0:00:11]} Bg7 {[%emt 0:00:06]} 6. Be3 {[%emt 0:00:08]} Nf6 {[%emt 0:00:05]} 7. Bc4 {[%emt 0:00:13]} O-O {[%emt 0:00:10]} 8. Bb3 {[%emt 0:00:10]} d6 {[%emt 0:01:10]} 9. f3 {[%emt 0:00:54]} Bd7 {[%emt 0:00:13]} 10. Qd2 {[%emt 0:00:26]} Rc8 {[%emt 0:00:09]} 11. O-O-O {[%emt 0:00:12]} Ne5 {[%emt 0:03:22]} 12. h4 {[%emt 0:04:06]} h5 {[%emt 0:00:38]} 13. Kb1 {[%emt 0:01:16]} Nc4 {[%emt 0:00:16]} 14. Bxc4 {[%emt 0:00:10]} Rxc4 {[%emt 0:00:05]} 15. Nde2 {[%emt 0:01:21]} Qc7 {[%emt 0:02:42]} 16. b3 {[%emt 0:01:15]} Rc6 {[%emt 0:03:50]} 17. Nb5 {[%emt 0:01:34]} Qd8 {[%emt 0:00:30]} 18. Bh6 {[%emt 0:02:21]} Ra6 {[%emt 0:05:17]} 19. Bxg7 {[%emt 0:02:46]} Kxg7 {[%emt 0:00:41]} 20. Nbc3 {[%emt 0:03:29]} Qa5 {[%emt 0:01:53]} 21. Kb2 {[%emt 0:05:00]} b5 {[%emt 0:04:21]} 22. Ra1 {[%emt 0:04:33]} Rc8 {[%emt 0:02:32]} 23. Rhd1 {[%emt 0:04:49]} Rac6 {[%emt 0:01:15]} 24. a3 {[%emt 0:05:38]} Qb6 {[%emt 0:06:01]} 25. Qd4 {[%emt 0:02:39]} Qc7 {[%emt 0:02:21]} 26. Rd2 {[%emt 0:05:38]} e5 {[%emt 0:03:13]} 27. Qd3 {[%emt 0:01:28]} Rb6 {[%emt 0:01:20]} 28. Nd5 {[%emt 0:03:24]} Nxd5 {[%emt 0:00:24]} 29. Qxd5 {[%emt 0:02:56]} Be6 {[%emt 0:00:58]} 30. Qd3 {[%emt 0:00:55]} b4 {[%emt 0:02:20]} 31. axb4 {[%emt 0:02:42]} Rxb4 {[%emt 0:00:25]} 32. Qxd6 {[%emt 0:01:42]} Rb7 {[%emt 0:14:34]} 33. Qxc7 {[%emt 0:01:14]} Rbxc7 {[%emt 0:00:18]} 34. Rc1 {[%emt 0:02:27]} a5 {[%emt 0:01:24]} 35. Rd3 {[%emt 0:04:37]} a4 {[%emt 0:01:43]} 36. bxa4 {[%emt 0:08:40]} Bc4 {[%emt 0:00:44]} 37. Re3 {[%emt 0:01:04]} Rb7+ {[%emt 0:00:27]} 38. Ka3 {[%emt 0:01:47]} Bxe2 {[%emt 0:00:53]} 39. Rxe2 {[%emt 0:00:27]} Rc3+ {[%emt 0:00:37]} 40. Ka2 {[%emt 0:00:25]} Rc4 {[%emt 0:00:12]} 41. Re3 {[%emt 0:30:52]} Rxa4+ {[%emt 0:30:35]} 42. Ra3 {[%emt 0:00:22]} Rd4 {[%emt 0:00:15]} 43. Rb3 {[%emt 0:03:33]} Rc7 {[%emt 0:01:12]} 44. c3 {[%emt 0:03:06]} Ra7+ {[%emt 0:03:23]} 45. Kb2 {[%emt 0:00:50]} Rd2+ {[%emt 0:00:23]} 46. Rc2 {[%emt 0:03:22]} Ra2+ {[%emt 0:00:12]} 47. Kxa2 {[%emt 0:00:23]} Rxc2+ {[%emt 0:00:05]} 48. Kb1 {[%emt 0:00:29]} Rxg2 {[%emt 0:00:08]} 49. c4 {[%emt 0:00:43]} Rd2 {[%emt 0:00:11]} 50. c5 {[%emt 0:01:33]} Rd8 {[%emt 0:00:36]} 51. c6 {[%emt 0:03:58]} Rc8 {[%emt 0:00:31]} 52. Rc3 {[%emt 0:00:44]} 1/2-1/2

[Event "DVM U12W 2021"]
[Site "Willingen"]
[Date "2022.08.15"]
[Round "5"]
[White "Goeb, Franziska"]
[Black "Ramakrishnan, Veda"]
[Result "0-1"]
[ECO "B11"]
[WhiteElo "1285"]
[BlackElo "1333"]
[Annotator "NA RC"]
[PlyCount "84"]
[EventDate "2022.08.12"]
[EventType "team-tourn"]
[EventRounds "7"]
[EventCountry "GER"]
[SourceTitle "playchess.com"]
[Source "ChessBase"]
[SourceQuality "1"]
[TimeControl "40/5400+30:1800+30"]

1. e4 {[%emt 0:00:01]} c6 {[%emt 0:00:05]} 2. Nf3 {[%emt 0:00:13]} d5 {[%emt 0:00:29]} 3. Nc3 {[%emt 0:00:05]} Bg4 {[%emt 0:00:32]} 4. h3 {[%emt 0:00:15]} Bh5 {[%emt 0:00:11]} 5. g4 {[%emt 0:00:05]} Bg6 {[%emt 0:00:09]} 6. exd5 {[%emt 0:00:09]} cxd5 {[%emt 0:00:11]} 7. Bb5+ {[%emt 0:00:06]} Nc6 {[%emt 0:00:56]} 8. Ne5 {[%emt 0:00:06]} Qd6 {[%emt 0:06:28]} 9. Nxg6 {[%emt 0:03:47]} hxg6 {[%emt 0:00:41]} 10. d4 {[%emt 0:02:42]} e6 {[%emt 0:00:56]} 11. Be3 {[%emt 0:03:46]} Nf6 {[%emt 0:02:18]} 12. Qe2 {[%emt 0:06:48]} Qc7 {[%emt 0:00:58]} 13. a3 {[%emt 0:01:38]} Bd6 {[%emt 0:00:40]} 14. O-O-O {[%emt 0:02:43]} O-O-O {[%emt 0:00:20]} 15. Qf3 {[%emt 0:07:32]} a6 {[%emt 0:02:05]} 16. Ba4 {[%emt 0:03:17]} Na5 {[%emt 0:01:10]} 17. Bd2 {[%emt 0:09:22]} Nc4 {[%emt 0:01:02]} 18. Bb3 {[%emt 0:04:48]} Nxd2 {[%emt 0:02:25]} 19. Rxd2 {[%emt 0:00:24]} Bf4 {[%emt 0:01:49]} 20. Rhd1 {[%emt 0:03:07]} Bxd2+ {[%emt 0:00:22]} 21. Rxd2 {[%emt 0:00:17]} Qh2 {[%emt 0:01:50]} 22. Rd3 {[%emt 0:02:18]} Rh7 {[%emt 0:03:48]} 23. g5 {[%emt 0:02:08]} Qg1+ {[%emt 0:02:02]} 24. Rd1 {[%emt 0:01:03]} Qxg5+ {[%emt 0:00:31]} 25. Kb1 {[%emt 0:00:17]} Rdh8 {[%emt 0:00:51]} 26. Na4 {[%emt 0:01:28]} Rxh3 {[%emt 0:01:21]} 27. Qe2 {[%emt 0:00:41]} Rh1 {[%emt 0:01:38]} 28. Rxh1 {[%emt 0:00:22]} Rxh1+ {[%emt 0:00:21]} 29. Ka2 {[%emt 0:00:06]} Qc1 {[%emt 0:01:46]} 30. Bxd5 {[%emt 0:01:08]} Nxd5 {[%emt 0:02:24]} 31. Qc4+ {[%emt 0:00:33]} Kd7 {[%emt 0:01:12]} 32. Qc5 {[%emt 0:01:08]} Qf4 {[%emt 0:02:04]} 33. Nb6+ {[%emt 0:00:47]} Nxb6 {[%emt 0:00:28]} 34. Qxb6 {[%emt 0:00:04]} Qc7 {[%emt 0:00:08]} 35. Qb4 {[%emt 0:00:19]} Qc6 {[%emt 0:04:45]} 36. d5 {[%emt 0:01:22]} Qxd5+ {[%emt 0:01:20]} 37. b3 {[%emt 0:00:36]} Rd1 {[%emt 0:01:07]} 38. Qa4+ {[%emt 0:00:40]} Qb5 {[%emt 0:00:20]} 39. Qf4 {[%emt 0:00:29]} Qf5 {[%emt 0:01:53]} 40. Qc4 {[%emt 0:01:17]} Qf6 {[%emt 0:03:56]} 41. Qa4+ {[%emt 0:30:55]} b5 {[%emt 0:30:44]} 42. Qxa6 {[%emt 0:00:18]} Qa1# {[%emt 0:00:08]} 0-1

[Event "DVM U12W 2021"]
[Site "Willingen"]
[Date "2022.08.15"]
[Round "5"]
[White "Leicher, Anna"]
[Black "Brandt, Clara"]
[Result "1/2-1/2"]
[ECO "C42"]
[WhiteElo "1252"]
[BlackElo "1161"]
[Annotator "NA RC"]
[PlyCount "83"]
[EventDate "2022.08.12"]
[EventType "team-tourn"]
[EventRounds "7"]
[EventCountry "GER"]
[SourceTitle "playchess.com"]
[Source "ChessBase"]
[SourceQuality "1"]
[TimeControl "40/5400+30:1800+30"]

1. e4 {[%emt 0:00:05]} e6 {[%emt 0:00:00]} 2. d4 {[%emt 0:00:07]} d5 {[%emt 0:00:04]} 3. exd5 {[%emt 0:00:07]} exd5 {[%emt 0:00:38]} 4. Nf3 {[%emt 0:01:29]} Nc6 {[%emt 0:01:14]} 5. Bd3 {[%emt 0:02:40]} Bd6 {[%emt 0:00:55]} 6. O-O {[%emt 0:01:59]} Nf6 {[%emt 0:01:47]} 7. Re1+ {[%emt 0:04:09]} Be7 {[%emt 0:03:05]} 8. h3 {[%emt 0:01:52]} O-O {[%emt 0:00:56]} 9. c4 {[%emt 0:06:42]} dxc4 {[%emt 0:01:14]} 10. Bxc4 {[%emt 0:03:13]} Na5 {[%emt 0:05:51]} 11. Bd3 {[%emt 0:03:42]} c5 {[%emt 0:11:12]} 12. dxc5 {[%emt 0:02:49]} Bxc5 {[%emt 0:02:41]} 13. Qc2 {[%emt 0:08:34]} Qb6 {[%emt 0:02:59]} 14. Ng5 {[%emt 0:03:25]} g6 {[%emt 0:06:45]} 15. Nc3 {[%emt 0:04:24]} Bd7 {[%emt 0:04:12]} 16. Nce4 {[%emt 0:04:51]} Bd4 {[%emt 0:10:10]} 17. Nxf6+ {[%emt 0:00:48]} Bxf6 {[%emt 0:01:42]} 18. Ne4 {[%emt 0:03:19]} Bg7 {[%emt 0:04:12]} 19. Be3 {[%emt 0:03:25]} Qc6 {[%emt 0:03:58]} 20. Qd2 {[%emt 0:05:33]} Nc4 {[%emt 0:03:08]} 21. Bxc4 {[%emt 0:00:41]} Qxc4 {[%emt 0:01:10]} 22. Bh6 {[%emt 0:02:11]} Bf5 {[%emt 0:06:35]} 23. Nd6 {[%emt 0:04:01]} Qc2 {[%emt 0:00:56]} 24. Nxf5 {[%emt 0:02:16]} Qxf5 {[%emt 0:02:06]} 25. Bxg7 {[%emt 0:00:41]} Kxg7 {[%emt 0:01:03]} 26. Re7 {[%emt 0:01:13]} b6 {[%emt 0:01:12]} 27. Qc3+ {[%emt 0:01:04]} Qf6 {[%emt 0:00:46]} 28. Qa3 {[%emt 0:01:41]} a5 {[%emt 0:02:30]} 29. Rae1 {[%emt 0:03:22]} Rfc8 {[%emt 0:01:35]} 30. Qb3 {[%emt 0:01:59]} Rc6 {[%emt 0:01:40]} 31. Qd5 {[%emt 0:01:03]} Rac8 {[%emt 0:04:42]} 32. Qb3 {[%emt 0:01:46]} Rc2 {[%emt 0:01:44]} 33. R7e2 {[%emt 0:00:51]} Rxe2 {[%emt 0:00:26]} 34. Rxe2 {[%emt 0:02:02]} Rc1+ {[%emt 0:00:21]} 35. Kh2 {[%emt 0:02:35]} Qd6+ {[%emt 0:02:06]} 36. Qg3 {[%emt 0:05:27]} Qxg3+ {[%emt 0:00:20]} 37. Kxg3 {[%emt 0:01:43]} Rc7 {[%emt 0:00:52]} 38. Rd2 {[%emt 0:01:19]} Rb7 {[%emt 0:00:55]} 39. Kf3 {[%emt 0:00:52]} Kh6 {[%emt 0:01:14]} 40. Rd6 {[%emt 0:01:00]} Kg5 {[%emt 0:01:03]} 41. Kg3 {[%emt 0:30:56]} Kf5 {[%emt 0:30:52]} 42. Rd4 1/2-1/2